fUST/lending_fUST_20260616
["ID","MTS","AMOUNT","RATE_DAILY","PERIOD"]
[425221450,1781623840000,-500.0,0.00014246,2]
[425221452,1781623840000,-4193.82,0.00014246,2]
[425221473,1781623840000,-500.0,0.00014246,2]
[425221448,1781623840000,-500.0,0.00014246,2]
[425221467,1781623840000,-500.0,0.00014246,2]
[425221471,1781623840000,-500.0,0.00014246,2]
[425221475,1781623840000,-500.0,0.00014246,2]
[425221477,1781623840000,-500.0,0.00014246,2]
[425221466,1781623840000,-500.0,0.00014246,2]
[425221479,1781623840000,-500.0,0.00014246,2]
[425221460,1781623840000,-500.0,0.00014246,2]
[425221462,1781623840000,-500.0,0.00014246,2]
[425221456,1781623840000,-500.0,0.00014246,2]
[425221458,1781623840000,-500.0,0.00014246,2]
[425221464,1781623840000,-500.0,0.00014246,2]
[425221562,1781623841000,-500.0,0.0001452,2]
[425221551,1781623841000,-500.0,0.0001452,2]
[425221552,1781623841000,-563.89983712,0.0001452,2]
[425221553,1781623841000,-500.0,0.0001452,2]
[425221555,1781623841000,-500.0,0.0001452,2]
[425221550,1781623841000,-500.0,0.0001452,2]
[425221559,1781623841000,-668.41,0.0001452,2]
[425221561,1781623841000,-500.0,0.0001452,2]
[425221549,1781623841000,-500.0,0.0001452,2]
[425221558,1781623841000,-500.0,0.0001452,2]
[425221560,1781623841000,-500.0,0.0001452,2]
[425221566,1781623841000,-500.0,0.0001452,2]
[425221557,1781623841000,-500.0,0.0001452,2]
[425221564,1781623841000,-500.0,0.0001452,2]
[425221590,1781623841000,-500.0,0.00014794,2]
[425221568,1781623841000,-500.0,0.0001452,2]
[425221570,1781623841000,-500.0,0.0001452,2]
[425221572,1781623841000,-302.75125974,0.00014653,2]
[425221563,1781623841000,-500.0,0.0001452,2]
[425221574,1781623841000,-500.0,0.00014793,2]
[425221577,1781623841000,-525.96,0.00014794,2]
[425221579,1781623841000,-500.0,0.00014794,2]
[425221581,1781623841000,-500.0,0.00014794,2]
[425221575,1781623841000,-500.0,0.00014794,2]
[425221586,1781623841000,-502.3173253,0.00014794,2]
[425221588,1781623841000,-500.0,0.00014794,2]
[425221591,1781623841000,-500.0,0.00014794,2]
[425221548,1781623841000,-500.0,0.0001452,2]
[425221565,1781623841000,-500.0,0.0001452,2]
[425221547,1781623841000,-500.0,0.0001452,2]
[425221517,1781623841000,-500.0,0.0001452,2]
[425221539,1781623841000,-500.0,0.0001452,2]
[425221516,1781623841000,-500.0,0.0001452,2]
[425221583,1781623841000,-337.02976954,0.00014794,2]
[425221515,1781623841000,-500.0,0.0001452,2]
[425221514,1781623841000,-500.0,0.0001452,2]
[425221530,1781623841000,-500.0,0.0001452,2]
[425221531,1781623841000,-500.0,0.0001452,2]
[425221519,1781623841000,-500.0,0.0001452,2]
[425221518,1781623841000,-500.0,0.0001452,2]
[425221521,1781623841000,-500.0,0.0001452,2]
[425221533,1781623841000,-500.0,0.0001452,2]
[425221532,1781623841000,-266.24364084,0.0001452,2]
[425221524,1781623841000,-500.0,0.0001452,2]
[425221528,1781623841000,-500.0,0.0001452,2]
[425221544,1781623841000,-500.0,0.0001452,2]
[425221526,1781623841000,-500.0,0.0001452,2]
[425221523,1781623841000,-791.41,0.0001452,2]
[425221529,1781623841000,-500.0,0.0001452,2]
[425221534,1781623841000,-4193.82,0.0001452,2]
[425221537,1781623841000,-500.0,0.0001452,2]
[425221546,1781623841000,-500.0,0.0001452,2]
[425221545,1781623841000,-500.0,0.0001452,2]
[425221538,1781623841000,-500.0,0.0001452,2]
[425221541,1781623841000,-500.0,0.0001452,2]
[425221535,1781623841000,-524.39004337,0.0001452,2]
[425221536,1781623841000,-500.0,0.0001452,2]
[425221540,1781623841000,-500.0,0.0001452,2]
[425221542,1781623841000,-345.78228781,0.0001452,2]
[425221543,1781623841000,-500.0,0.0001452,2]
[425221527,1781623841000,-500.0,0.0001452,2]
[425221593,1781623841000,-151.0,0.00014794,2]
[425221520,1781623841000,-500.0,0.0001452,2]
[425221605,1781623841000,-500.0,0.00014794,2]
[425221663,1781623841000,-500.0,0.00014794,2]
[425221669,1781623841000,-500.0,0.00014794,2]
[425221670,1781623841000,-500.0,0.00014794,2]
[425221674,1781623841000,-151.0,0.00014794,2]
[425221672,1781623841000,-500.0,0.00014794,2]
[425221678,1781623841000,-199.53400507,0.00014831,2]
[425221676,1781623841000,-151.988666,0.00014794,2]
[425221680,1781623841000,-627.8920707,0.00014889,2]
[425221682,1781623841000,-2563.0310532,0.00014889,2]
[425221685,1781623841000,-500.0,0.00014892,2]
[425221686,1781623841000,-205.37733386,0.00014966,2]
[425221688,1781623841000,-7676.93850453,0.00014968,2]
[425221702,1781623841000,-500.0,0.00015068,2]
[425221661,1781623841000,-500.0,0.00014794,2]
[425221690,1781623841000,-151.0,0.00015,2]
[425221704,1781623841000,-500.0,0.00015068,2]
[425221698,1781623841000,-500.0,0.00015068,2]
[425221706,1781623841000,-500.0,0.00015068,2]
[425221718,1781623841000,-462.56,0.00015068,2]
[425221695,1781623841000,-525.96,0.00015068,2]
[425221700,1781623841000,-500.0,0.00015068,2]
[425221696,1781623841000,-500.0,0.00015068,2]
[425221710,1781623841000,-500.0,0.00015068,2]
[425221712,1781623841000,-500.0,0.00015068,2]
[425221714,1781623841000,-500.0,0.00015068,2]
[425221720,1781623841000,-500.0,0.00015068,2]
[425221716,1781623841000,-500.0,0.00015068,2]
[425221603,1781623841000,-500.0,0.00014794,2]
[425221693,1781623841000,-500.0,0.00015068,2]
[425221656,1781623841000,-500.0,0.00014794,2]
[425221708,1781623841000,-791.41,0.00015068,2]
[425221657,1781623841000,-500.0,0.00014794,2]
[425221659,1781623841000,-445.32105213,0.00014794,2]
[425221599,1781623841000,-791.41,0.00014794,2]
[425221607,1781623841000,-500.0,0.00014794,2]
[425221609,1781623841000,-151.0,0.00014794,2]
[425221595,1781623841000,-500.0,0.00014794,2]
[425221597,1781623841000,-500.0,0.00014794,2]
[425221613,1781623841000,-151.0,0.00014794,2]
[425221619,1781623841000,-500.0,0.00014794,2]
[425221620,1781623841000,-500.0,0.00014794,2]
[425221615,1781623841000,-500.0,0.00014794,2]
[425221617,1781623841000,-500.0,0.00014794,2]
[425221628,1781623841000,-500.0,0.00014794,2]
[425221632,1781623841000,-500.0,0.00014794,2]
[425221611,1781623841000,-151.0,0.00014794,2]
[425221601,1781623841000,-500.0,0.00014794,2]
[425221630,1781623841000,-500.0,0.00014794,2]
[425221622,1781623841000,-4193.82,0.00014794,2]
[425221648,1781623841000,-568.42586806,0.00014794,2]
[425221652,1781623841000,-500.0,0.00014794,2]
[425221640,1781623841000,-500.0,0.00014794,2]
[425221646,1781623841000,-153.943941,0.00014794,2]
[425221642,1781623841000,-500.0,0.00014794,2]
[425221654,1781623841000,-668.41,0.00014794,2]
[425221636,1781623841000,-500.0,0.00014794,2]
[425221624,1781623841000,-500.0,0.00014794,2]
[425221644,1781623841000,-500.0,0.00014794,2]
[425221626,1781623841000,-500.0,0.00014794,2]
[425221650,1781623841000,-285.41238703,0.00014794,2]
[425221634,1781623841000,-500.0,0.00014794,2]
[425221638,1781623841000,-500.0,0.00014794,2]
[425221769,1781623842000,-500.0,0.00015342,2]
[425221779,1781623842000,-500.0,0.00015342,2]
[425221783,1781623842000,-500.0,0.00015342,2]
[425221789,1781623842000,-409.01964356,0.00015342,2]
[425221787,1781623842000,-524.46093093,0.00015342,2]
[425221799,1781623842000,-500.0,0.00015342,2]
[425221801,1781623842000,-520.53513661,0.00015342,2]
[425221795,1781623842000,-500.0,0.00015342,2]
[425221791,1781623842000,-500.0,0.00015342,2]
[425221793,1781623842000,-500.0,0.00015342,2]
[425221785,1781623842000,-583.33,0.00015342,2]
[425221811,1781623842000,-500.0,0.00015342,2]
[425221781,1781623842000,-791.41,0.00015342,2]
[425221797,1781623842000,-4193.82,0.00015342,2]
[425221804,1781623842000,-520.19904536,0.00015342,2]
[425221808,1781623842000,-500.0,0.00015342,2]
[425221806,1781623842000,-500.0,0.00015342,2]
[425221814,1781623842000,-668.41,0.00015342,2]
[425221821,1781623842000,-165.9351571,0.00015371,7]
[425221817,1781623842000,-500.0,0.00015342,2]
[425221816,1781623842000,-500.0,0.00015342,2]
[425221819,1781623842000,-500.0,0.00015342,2]
[425221777,1781623842000,-500.0,0.00015342,2]
[425221803,1781623842000,-500.0,0.00015342,2]
[425221771,1781623842000,-500.0,0.00015342,2]
[425221743,1781623842000,-500.0,0.00015068,2]
[425221773,1781623842000,-500.0,0.00015342,2]
[425221824,1781623842000,-946.7441827,0.00015559,2]
[425221722,1781623842000,-500.0,0.00015068,2]
[425221729,1781623842000,-500.0,0.00015068,2]
[425221727,1781623842000,-500.0,0.00015068,2]
[425221724,1781623842000,-500.0,0.00015068,2]
[425221726,1781623842000,-4193.82,0.00015068,2]
[425221733,1781623842000,-510.35957862,0.00015068,2]
[425221731,1781623842000,-500.0,0.00015068,2]
[425221735,1781623842000,-500.0,0.00015068,2]
[425221739,1781623842000,-517.96730668,0.00015068,2]
[425221741,1781623842000,-500.0,0.00015068,2]
[425221775,1781623842000,-500.0,0.00015342,2]
[425221737,1781623842000,-500.0,0.00015068,2]
[425221750,1781623842000,-500.0,0.00015068,2]
[425221748,1781623842000,-668.41,0.00015068,2]
[425221752,1781623842000,-500.0,0.00015068,2]
[425221753,1781623842000,-500.0,0.00015068,2]
[425221755,1781623842000,-481.75434263,0.00015068,2]
[425221759,1781623842000,-623.87,0.00015068,2]
[425221757,1781623842000,-500.0,0.00015068,2]
[425221761,1781623842000,-183.939474,0.00015068,2]
[425221763,1781623842000,-171.347441,0.00015102,2]
[425221765,1781623842000,-500.0,0.00015342,2]
[425221767,1781623842000,-525.96,0.00015342,2]
[425221746,1781623842000,-500.0,0.00015068,2]
[425221827,1781623842000,-276.53748347,0.00015559,2]
[425221834,1781623842000,-500.0,0.00015616,2]
[425221830,1781623842000,-500.0,0.00015616,2]
[425221889,1781623842000,-160.0,0.00015685,2]
[425221900,1781623842000,-160.0,0.00015685,2]
[425221896,1781623842000,-1300.931805,0.00015685,2]
[425221895,1781623842000,-160.0,0.00015685,2]
[425221908,1781623842000,-2180.019984,0.00015685,2]
[425221910,1781623842000,-4200.039968,0.00015685,2]
[425221912,1781623842000,-171.347441,0.00015788,2]
[425221904,1781623842000,-5654.590454,0.00015685,2]
[425221906,1781623842000,-160.0,0.00015685,2]
[425221902,1781623842000,-2907.295227,0.00015685,2]
[425221915,1781623842000,-525.96,0.0001589,2]
[425221898,1781623842000,-2441.863611,0.00015685,2]
[425221921,1781623842000,-500.0,0.0001589,2]
[425221917,1781623842000,-500.0,0.0001589,2]
[425221914,1781623842000,-500.0,0.0001589,2]
[425221933,1781623842000,-13.92037127,0.0001589,2]
[425221925,1781623842000,-500.0,0.0001589,2]
[425221931,1781623842000,-320.14165354,0.0001589,2]
[425221927,1781623842000,-471.26834646,0.0001589,2]
[425221940,1781623842000,-800.28037127,0.0001589,2]
[425221937,1781623842000,-407.34,0.0001589,2]
[425221938,1781623842000,-500.0,0.0001589,2]
[425221935,1781623842000,-486.07962873,0.0001589,2]
[425221828,1781623842000,-151.0,0.000156,2]
[425221923,1781623842000,-500.0,0.0001589,2]
[425221893,1781623842000,-322.461023,0.00015685,2]
[425221919,1781623842000,-500.0,0.0001589,2]
[425221887,1781623842000,-151.0,0.00015676,2]
[425221891,1781623842000,-241.230511,0.00015685,2]
[425221836,1781623842000,-500.0,0.00015616,2]
[425221840,1781623842000,-500.0,0.00015616,2]
[425221843,1781623842000,-500.0,0.00015616,2]
[425221851,1781623842000,-791.41,0.00015616,2]
[425221853,1781623842000,-151.0,0.00015616,2]
[425221858,1781623842000,-151.0,0.00015616,2]
[425221855,1781623842000,-151.0,0.00015616,2]
[425221847,1781623842000,-500.0,0.00015616,2]
[425221861,1781623842000,-500.0,0.00015616,2]
[425221845,1781623842000,-151.0,0.00015616,2]
[425221849,1781623842000,-615.01,0.00015616,2]
[425221832,1781623842000,-525.96,0.00015616,2]
[425221871,1781623842000,-500.0,0.00015616,2]
[425221864,1781623842000,-500.0,0.00015616,2]
[425221881,1781623842000,-412.97,0.00015616,2]
[425221883,1781623842000,-500.0,0.00015616,2]
[425221870,1781623842000,-500.0,0.00015616,2]
[425221877,1781623842000,-668.41,0.00015616,2]
[425221885,1781623842000,-500.0,0.00015675,2]
[425221874,1781623842000,-500.0,0.00015616,2]
[425221875,1781623842000,-194.22164818,0.00015616,2]
[425221868,1781623842000,-4193.82,0.00015616,2]
[425221866,1781623842000,-500.0,0.00015616,2]
[425221879,1781623842000,-500.0,0.00015616,2]
[425222402,1781623846000,-3000.0,0.0001624,2]
[425222389,1781623846000,-151.0,0.000162,2]
[425222376,1781623846000,-3000.0,0.0001618,2]
[425222382,1781623846000,-185.331924,0.0001618,2]
[425222391,1781623846000,-3000.0,0.0001621,2]
[425222420,1781623846000,-3000.0,0.0001631,2]
[425222360,1781623846000,-500.0,0.00016164,2]
[425222374,1781623846000,-192.98441,0.0001617,2]
[425222370,1781623846000,-500.0,0.00016164,2]
[425222404,1781623846000,-250.0,0.00016247,2]
[425222364,1781623846000,-500.0,0.00016164,2]
[425222366,1781623846000,-668.41,0.00016164,2]
[425222396,1781623846000,-3000.0,0.0001623,2]
[425222393,1781623846000,-3000.0,0.0001622,2]
[425222372,1781623846000,-3000.0,0.0001617,2]
[425222378,1781623846000,-151.0,0.0001618,2]
[425222380,1781623846000,-151.0,0.0001618,2]
[425222387,1781623846000,-151.0,0.000162,2]
[425222408,1781623846000,-3000.0,0.0001626,2]
[425222400,1781623846000,-151.0,0.0001623,2]
[425222412,1781623846000,-3000.0,0.0001627,2]
[425222418,1781623846000,-3000.0,0.000163,2]
[425222416,1781623846000,-3000.0,0.0001629,2]
[425222414,1781623846000,-3000.0,0.0001628,2]
[425222429,1781623846000,-3000.0,0.0001635,2]
[425222384,1781623846000,-3000.0,0.0001619,2]
[425222406,1781623846000,-3000.0,0.0001625,2]
[425222327,1781623846000,-3000.0,0.0001611,2]
[425222362,1781623846000,-500.0,0.00016164,2]
[425222321,1781623846000,-500.0,0.0001589,2]
[425222325,1781623846000,-3000.0,0.000161,2]
[425222323,1781623846000,-199.53400507,0.00016064,2]
[425222310,1781623846000,-3393.53962873,0.0001589,2]
[425222329,1781623846000,-3000.0,0.0001612,2]
[425222312,1781623846000,-500.0,0.0001589,2]
[425222314,1781623846000,-500.0,0.0001589,2]
[425222331,1781623846000,-3000.0,0.0001613,2]
[425222319,1781623846000,-500.0,0.0001589,2]
[425222316,1781623846000,-500.0,0.0001589,2]
[425222318,1781623846000,-668.41,0.0001589,2]
[425222333,1781623846000,-3000.0,0.0001614,2]
[425222335,1781623846000,-3000.0,0.0001615,2]
[425222337,1781623846000,-3000.0,0.0001616,2]
[425222339,1781623846000,-500.0,0.00016164,2]
[425222343,1781623846000,-500.0,0.00016164,2]
[425222345,1781623846000,-500.0,0.00016164,2]
[425222341,1781623846000,-525.96,0.00016164,2]
[425222352,1781623846000,-791.41,0.00016164,2]
[425222347,1781623846000,-500.0,0.00016164,2]
[425222358,1781623846000,-4193.82,0.00016164,2]
[425222351,1781623846000,-500.0,0.00016164,2]
[425222356,1781623846000,-500.0,0.00016164,2]
[425222354,1781623846000,-500.0,0.00016164,2]
[425222349,1781623846000,-500.0,0.00016164,2]
[425222368,1781623846000,-500.0,0.00016164,2]
[425222426,1781623846000,-7676.93850453,0.00016337,2]
[425222386,1781623846000,-3000.0,0.000162,2]
[425222427,1781623846000,-3000.0,0.0001634,2]
[425222489,1781623846000,-151.0,0.00016438,2]
[425222484,1781623846000,-500.0,0.00016438,2]
[425222491,1781623846000,-162.800591,0.00016438,2]
[425222493,1781623846000,-154.146956,0.00016438,2]
[425222504,1781623846000,-485.842016,0.00016438,2]
[425222501,1781623846000,-233.29536,0.00016438,2]
[425222497,1781623846000,-151.0,0.00016438,2]
[425222506,1781623846000,-485.842016,0.00016438,2]
[425222502,1781623846000,-485.842016,0.00016438,2]
[425222499,1781623846000,-151.0,0.00016438,2]
[425222495,1781623846000,-151.0,0.00016438,2]
[425222512,1781623846000,-485.842016,0.00016438,2]
[425222514,1781623846000,-485.842016,0.00016438,2]
[425222510,1781623846000,-485.842016,0.00016438,2]
[425222516,1781623846000,-485.842016,0.00016438,2]
[425222527,1781623846000,-485.842016,0.00016438,2]
[425222521,1781623846000,-485.842016,0.00016438,2]
[425222517,1781623846000,-485.842016,0.00016438,2]
[425222523,1781623846000,-485.842016,0.00016438,2]
[425222519,1781623846000,-485.842016,0.00016438,2]
[425222529,1781623846000,-485.842016,0.00016438,2]
[425222531,1781623846000,-3000.0,0.0001644,2]
[425222525,1781623846000,-485.842016,0.00016438,2]
[425222530,1781623846000,-485.842016,0.00016438,2]
[425222422,1781623846000,-3000.0,0.0001632,2]
[425222487,1781623846000,-151.0,0.00016438,2]
[425222486,1781623846000,-151.0,0.00016438,2]
[425222508,1781623846000,-485.842016,0.00016438,2]
[425222480,1781623846000,-668.41,0.00016438,2]
[425222482,1781623846000,-500.0,0.00016438,2]
[425222437,1781623846000,-3000.0,0.0001639,2]
[425222434,1781623846000,-3000.0,0.0001637,2]
[425222431,1781623846000,-3000.0,0.0001636,2]
[425222435,1781623846000,-3000.0,0.0001638,2]
[425222441,1781623846000,-3000.0,0.0001641,2]
[425222439,1781623846000,-3000.0,0.000164,2]
[425222451,1781623846000,-525.96,0.00016438,2]
[425222443,1781623846000,-151.0,0.0001641,2]
[425222447,1781623846000,-3000.0,0.0001642,2]
[425222445,1781623846000,-151.0,0.0001641,2]
[425222453,1781623846000,-500.0,0.00016438,2]
[425222449,1781623846000,-3000.0,0.0001643,2]
[425222424,1781623846000,-3000.0,0.0001633,2]
[425222474,1781623846000,-500.0,0.00016438,2]
[425222457,1781623846000,-500.0,0.00016438,2]
[425222472,1781623846000,-4193.82,0.00016438,2]
[425222478,1781623846000,-500.0,0.00016438,2]
[425222470,1781623846000,-500.0,0.00016438,2]
[425222459,1781623846000,-636.65269035,0.00016438,2]
[425222476,1781623846000,-500.0,0.00016438,2]
[425222468,1781623846000,-500.0,0.00016438,2]
[425222462,1781623846000,-159.0,0.00016438,2]
[425222464,1781623846000,-500.0,0.00016438,2]
[425222460,1781623846000,-151.0,0.00016438,2]
[425222455,1781623846000,-500.0,0.00016438,2]
[425222466,1781623846000,-791.41,0.00016438,2]
[425222567,1781623847000,-200.11,0.00016712,2]
[425222571,1781623847000,-174.25,0.00016712,2]
[425222570,1781623847000,-500.0,0.00016712,2]
[425222560,1781623847000,-151.0,0.0001653,2]
[425222568,1781623847000,-500.0,0.00016712,2]
[425222563,1781623847000,-151.0,0.00016591,2]
[425222561,1781623847000,-4684.030047,0.0001654,2]
[425222569,1781623847000,-791.41,0.00016712,2]
[425222566,1781623847000,-500.0,0.00016712,2]
[425222564,1781623847000,-525.96,0.00016712,2]
[425222573,1781623847000,-500.0,0.00016712,2]
[425222565,1781623847000,-500.0,0.00016712,2]
[425222572,1781623847000,-4193.82,0.00016712,2]
[425222578,1781623847000,-151.0,0.000169,2]
[425222575,1781623847000,-668.41,0.00016712,2]
[425222576,1781623847000,-500.0,0.00016712,2]
[425222586,1781623847000,-500.0,0.00016986,2]
[425222577,1781623847000,-500.0,0.00016712,2]
[425222587,1781623847000,-500.0,0.00016986,2]
[425222579,1781623847000,-1229.39999073,0.00016944,2]
[425222584,1781623847000,-500.0,0.00016986,2]
[425222585,1781623847000,-4193.82,0.00016986,2]
[425222583,1781623847000,-791.41,0.00016986,2]
[425222580,1781623847000,-810.534518,0.00016968,2]
[425222581,1781623847000,-525.96,0.00016986,2]
[425222582,1781623847000,-500.0,0.00016986,2]
[425222574,1781623847000,-500.0,0.00016712,2]
[425222562,1781623847000,-248.45041926,0.0001656,2]
[425222532,1781623847000,-3000.0,0.0001645,2]
[425222550,1781623847000,-200.0,0.000165,3]
[425222588,1781623847000,-668.41,0.00016986,2]
[425222534,1781623847000,-482.80024562,0.00016459,2]
[425222537,1781623847000,-2341.67725,0.00016469,2]
[425222538,1781623847000,-5233.131408,0.00016469,2]
[425222536,1781623847000,-434.214921,0.00016469,2]
[425222539,1781623847000,-3924.035971,0.00016469,2]
[425222535,1781623847000,-3000.0,0.0001646,2]
[425222533,1781623847000,-151.0,0.0001645,2]
[425222544,1781623847000,-27358.46624007,0.000165,2]
[425222540,1781623847000,-3000.0,0.0001647,2]
[425222545,1781623847000,-200.0,0.000165,3]
[425222542,1781623847000,-3000.0,0.0001649,2]
[425222559,1781623847000,-3000.0,0.0001653,2]
[425222543,1781623847000,-3000.0,0.000165,2]
[425222556,1781623847000,-485.842007,0.000165,2]
[425222555,1781623847000,-485.842016,0.000165,2]
[425222557,1781623847000,-3000.0,0.0001651,2]
[425222546,1781623847000,-200.0,0.000165,3]
[425222558,1781623847000,-3000.0,0.0001652,2]
[425222547,1781623847000,-200.0,0.000165,3]
[425222549,1781623847000,-200.0,0.000165,3]
[425222548,1781623847000,-200.0,0.000165,3]
[425222552,1781623847000,-151.0,0.000165,2]
[425222553,1781623847000,-485.842016,0.000165,2]
[425222551,1781623847000,-151.0,0.000165,2]
[425222554,1781623847000,-485.842016,0.000165,2]
[425222541,1781623847000,-3000.0,0.0001648,2]
[425222594,1781623847000,-103135.64019003,0.00017,2]
[425222590,1781623847000,-500.0,0.00016986,2]
[425222596,1781623847000,-200.0,0.00017,2]
[425222652,1781623847000,-525.96,0.00017808,2]
[425222653,1781623847000,-160.460192,0.00017808,2]
[425222659,1781623847000,-500.0,0.00017808,2]
[425222655,1781623847000,-500.19,0.00017808,2]
[425222661,1781623847000,-4193.82,0.00017808,2]
[425222663,1781623847000,-500.0,0.00017808,2]
[425222665,1781623847000,-500.0,0.00017808,2]
[425222669,1781623847000,-500.0,0.00017808,2]
[425222682,1781623847000,-1308.01199,0.00018038,2]
[425222667,1781623847000,-668.41,0.00017808,2]
[425222671,1781623847000,-500.0,0.00017808,2]
[425222673,1781623847000,-1594.05122,0.00017963,2]
[425222677,1781623847000,-1228.0,0.00018,2]
[425222675,1781623847000,-201.1783468,0.00018,2]
[425222680,1781623847000,-1744.377136,0.00018038,2]
[425222679,1781623847000,-780.559083,0.00018038,2]
[425222684,1781623847000,-262.09579353,0.00018044,2]
[425222686,1781623847000,-525.96,0.00018082,2]
[425222688,1781623847000,-791.41,0.00018082,2]
[425222694,1781623847000,-500.0,0.00018082,2]
[425222696,1781623847000,-500.0,0.00018082,2]
[425222690,1781623847000,-608.45,0.00018082,2]
[425222592,1781623847000,-500.0,0.00016986,2]
[425222701,1781623847000,-500.0,0.00018082,2]
[425222703,1781623847000,-151.0,0.000181,2]
[425222697,1781623847000,-668.41,0.00018082,2]
[425222699,1781623847000,-500.0,0.00018082,2]
[425222650,1781623847000,-7676.93850453,0.00017707,2]
[425222646,1781623847000,-2563.0310532,0.00017681,2]
[425222692,1781623847000,-4193.82,0.00018082,2]
[425222657,1781623847000,-791.41,0.00017808,2]
[425222648,1781623847000,-151.0,0.000177,2]
[425222598,1781623847000,-525.96,0.0001726,2]
[425222601,1781623847000,-791.41,0.0001726,2]
[425222611,1781623847000,-668.41,0.0001726,2]
[425222603,1781623847000,-500.0,0.0001726,2]
[425222605,1781623847000,-4193.82,0.0001726,2]
[425222609,1781623847000,-500.0,0.0001726,2]
[425222607,1781623847000,-500.0,0.0001726,2]
[425222612,1781623847000,-500.0,0.0001726,2]
[425222616,1781623847000,-9768.511962,0.00017421,2]
[425222618,1781623847000,-4371.130867,0.00017454,2]
[425222620,1781623847000,-151.0,0.000175,2]
[425222614,1781623847000,-500.0,0.0001726,2]
[425222599,1781623847000,-500.0,0.0001726,2]
[425222624,1781623847000,-525.96,0.00017534,2]
[425222622,1781623847000,-200.0,0.00017529,2]
[425222643,1781623847000,-2172.33134165,0.000176,2]
[425222641,1781623847000,-500.0,0.00017534,2]
[425222639,1781623847000,-500.0,0.00017534,2]
[425222637,1781623847000,-668.41,0.00017534,2]
[425222644,1781623847000,-627.8920707,0.00017655,2]
[425222626,1781623847000,-500.0,0.00017534,2]
[425222631,1781623847000,-4193.82,0.00017534,2]
[425222633,1781623847000,-500.0,0.00017534,2]
[425222635,1781623847000,-500.0,0.00017534,2]
[425222628,1781623847000,-791.41,0.00017534,2]
[425222630,1781623847000,-500.0,0.00017534,2]
[425222767,1781623848000,-500.0,0.0001863,2]
[425222757,1781623848000,-791.41,0.0001863,2]
[425222756,1781623848000,-525.96,0.0001863,2]
[425222759,1781623848000,-4193.82,0.0001863,2]
[425222765,1781623848000,-668.41,0.0001863,2]
[425222761,1781623848000,-500.0,0.0001863,2]
[425222763,1781623848000,-500.0,0.0001863,2]
[425222776,1781623848000,-514.79518839,0.000187,2]
[425222769,1781623848000,-500.0,0.0001863,2]
[425222750,1781623848000,-5428.57848547,0.000185,2]
[425222783,1781623848000,-328.82,0.000188,2]
[425222778,1781623848000,-5428.57848547,0.000187,2]
[425222772,1781623848000,-700.467415,0.00018672,2]
[425222770,1781623848000,-160.0,0.00018672,2]
[425222780,1781623848000,-151.0,0.000187,2]
[425222785,1781623848000,-5428.57848547,0.000189,2]
[425222787,1781623848000,-525.96,0.00018904,2]
[425222784,1781623848000,-514.79518839,0.000189,2]
[425222794,1781623848000,-500.0,0.00018904,2]